Workbook

Sheet Preço Médio Combustível
A1: LEVANTAMENTO DE PREÇO DE COMBUSTÍVEL
A2: AGÊNCIA NACIONAL DO PETRÓLEO, GÁS NATURAL E BIOCOMBUSTÍVEIS - ANP
A3: SUPERINTENDÊNCIA DE DEFESA DA CONCORRÊNCIA
A4: LEVANTAMENTO DE PREÇOS DE COMBUSTÍVEIS
A7: INTERVALO DE TEMPO: SEMANAL
A8: COMBUSTÍVEL: TODOS
A9: TIPO RELATÓRIO: ESTADOS
A11: DATA INICIAL | B11: DATA FINAL | C11: REGIAO | D11: ESTADOS | E11: PRODUTO | F11: NÚMERO DE POSTOS PESQUISADOS | G11: UNIDADE DE MEDIDA | H11: PREÇO MÉDIO REVENDA | I11: DESVIO PADRÃO REVENDA | J11: PREÇO MÍNIMO REVENDA | K11: PREÇO MÁXIMO REVENDA | L11: COEF DE VARIAÇÃO REVENDA
A12: 2026-04-19 | B12: 2026-04-25 | C12: NORDESTE | D12: CEARA | E12: ETANOL HIDRATADO | F12: 118 | G12: R$/l | H12: 5.44 | I12: 0.226 | J12: 4.99 | K12: 6.19 | L12: 0.041
A13: 2026-04-19 | B13: 2026-04-25 | C13: NORDESTE | D13: CEARA | E13: GASOLINA ADITIVADA | F13: 113 | G13: R$/l | H13: 7.14 | I13: 0.264 | J13: 6.09 | K13: 7.49 | L13: 0.037
A14: 2026-04-19 | B14: 2026-04-25 | C14: NORDESTE | D14: CEARA | E14: OLEO DIESEL S10 | F14: 121 | G14: R$/l | H14: 7.13 | I14: 0.369 | J14: 6.15 | K14: 7.99 | L14: 0.052

Sheet CUSTO COMBUSTÍVEL.LAVAGEM
E1: COMPOSIÇÃO CUSTO COMBUSTÍVEL
E4: FROTA
E5: PERÍODO | F5: REG 7C09 | G5: REG 7C15 | H5: REG 9E56
E6: 2025-08-04 | F6: 99982 | G6: 90275 | H6: 42510
E7: 2026-04-15 | F7: 133450 | G7: 113070 | H7: 75600
F9: REG 7C09 | G9: REG 7C15 | H9: REG 9E56 | I9: MÉDIA
E10: KM RODADOS | F10: =F7-F6 -> 33468 | G10: =G7-G6 -> 22795 | H10: =H7-H6 -> 33090 | I10: =AVERAGE(F10:H10) -> 29784.33333
E11: MÉDIA DE KM RODADOS | F11: =F10/8 -> 4183.5 | G11: =G10/8 -> 2849.375 | H11: =H10/8 -> 4136.25 | I11: =AVERAGE(F11:H11) -> 3723.041667
E12: USO LITRO MÊS | F12: =F11/C13 -> 398.4285714 | G12: =G11/C13 -> 271.3690476 | H12: =H11/C13 -> 393.9285714 | I12: =(F12+G12+H12)/3 -> 354.5753968
B13: Consumo MÉDIO Pick-up | C13: 10.5 | E13: CUSTO MÊS | F13: =F12*C14 -> 2840.795714 | G13: =G12*C14 -> 1934.86131 | H13: =H12*C14 -> 2808.710714 | I13: =(F13+G13+H13)/3 -> 2528.122579
B14: Preço médio diesel | C14: 7.13
E15: TOTAL LITRO MÊS - FROTA ATUAL | F15: =F12+G12+H12 -> 1063.72619
E16: TOTAL CUSTO MÊS - FROTA ATUAL | F16: =F13+G13+H13 -> 7584.367738
E18: ESTIMATIVA LITRO MÊS - CAMINHONETE PREVISTA PARA AQUISIÇÃO | F18: 354.58
E19: ESTIMATIVA CUSTO MÊS - CAMINHONETE PREVISTA PARA AQUISIÇÃO | F19: 2528.12
E21: TOTAL ANUAL LITRO - FROTA + CAMINHONTE PREVISTA PARA AQUISIÇÃO | F21: 17019.62
E22: TOTAL ANUAL CUSTO - FROTA + CAMINHONETE PREVISTA PARA AQUISIÇÃO | F22: 121349.8906
B25: 25372 - Controle de Abastecimento de Veículos | E25: TPO DE COMBUSTÍVEL | F25: Litros Mensal | G25: Litros Anual | H25: PREÇO MÉDIO REVENDA | I25: CUSTO ANUAL
E26: DIESEL | F26: 1418.31 | G26: 17019.62 | H26: 7.13 | I26: =H26*G26 -> 121349.8906
E27: GASOLINA | F27: *200 | G27: 2400 | H27: =[1]ESTADOS!H43 -> 7.14 | I27: =G27*H27 -> 17136
E28: ETANOL | F28: **50 | G28: 600 | H28: =[1]ESTADOS!H16 -> 5.44 | I28: =G28*H28 -> 3264
E30: LAVAGEM VEICULAR | F30: Quantidade mensal | G30: Quantidade anual | H30: PREÇO MÉDIO DE MERCADO | I30: CUSTO ANUAL
F31: ***10 | G31: 120 | H31: 106 | I31: =H31*G31 -> 12720
E32: *Como não há histórico de utilização de veículo de passeio, a quantidade estimada foi calculada com base no uso em vias urbanas e rodovias.
E33: **Como não há histórico de utilização de veículo de passeio, a quantidade estimada foi calculada com base no uso em vias urbanas e rodovias, como suplementação do uso do combustível à gasolina
E34: ***Considerando 2 lavagens por mês para cada veículo - 5 veículos
F38: Lavagem veicular
F39: Fonte | G39: Valor R$
F40: Edital Inmetro | G40: 100
F41: NF DOM VICTOR - local | G41: 120
F42: Carwash ecologico Fortaleza - local | G42: 120
F43: Painel de preço | G43: 84.02
F45: Média | G45: 106

Sheet CUSTO MANUTENÇÃO
C2: COMPOSIÇÃO CUSTO DE MANUTENÇÃO
B4: MANUTENÇÃO | F4: ** Metodologia de cálculo prevista no contrato 7.0018.00/2024 – CODEVASF, em execução na 7ª Superintendência Regional, em Teresina/PI, a qual estima os custos de manutenção com base na quilometragem rodada dos veículos
B5: Custo de manutenção por km rodado ** | C5: 0.42 | D5: 7ª SR**
B7: (A) MÉDIA KM RODADO FROTA MÊS | C7: (B) CUSTO MANUTENÇÃO KM | D7: (C) TOTAL POR VEICULO = (AxB) | E7: (D) CUSTO FROTA MÊS = (C x 5) | F7: CUSTO ANUAL = (D x 12)
B8: 3723 | C8: 0.42 | D8: =C8*B8 -> 1563.66 | E8: =D8*5 -> 7818.3 | F8: =E8*12 -> 93819.6

Sheet LEVANTAMENTO TAXA DE DESCONTO
C2: COMPOSIÇÃO TAXA DE DESCONTO
C5: Órgão | D5: Proceso referência | E5: EDITAL | F5: Taxa de desconto
C6: JUSTIÇA FEDERAL DE PRIMEIRO GRAU - SEÇÃO JUDICIÁRIA DO RIO GRANDE DO SUL (UASG 090020 | D6: 0000543-96.2026.4.04.8001 | E6: EDITAL PREGÃO Nº 4/2026 | F6: 0.0511
C7: INSTITUTO FEDERAL DO CEARÁ – CAMPUS CAUCAIA | D7: 23486.000099/2026-87 | E7: PREGÃO ELETRONICO Nº 96001/2026 | F7: 0.0521
C8: JUSTIÇA FEDERAL DE PRIMEIRO GRAU NA BAHIA- BA | D8: 0015425-72.2025.4.01.8004 | E8: PREGÃO ELETRÔNICO N° 90003/2026 | F8: 0.0517
C9: SUPERINTENDÊNCIA FEDERAL DE AGRICULTURA EM RORAIMA - SFA-RR | D9: 21048.000007/2025-11 | E9: PREGÃO ELETRÔNICO - SRP Nº90001/2025 | F9: 0.0442
C10: Procuradoria Regional da República da 1ª Região – PRR1 | D10: N° 1.01.000.000224/2025-95 | E10: PREGÃO ELETRÔNICO Nº 90002/2026) | F10: 0.02
E11: MÉDIA ARITIMÉTICA | F11: =AVERAGE(F6:F10) -> 0.04382
E12: MEDIANA | F12: 0.0511
C14: Órgão | D14: Proceso referência | E14: EDITAL | F14: Taxa de desconto
C15: SUPERINTENDÊNCIA FEDERAL DE AGRICULTURA EM RORAIMA - SFA-RR | D15: 21048.000007/2025-11 | E15: PREGÃO ELETRÔNICO - SRP Nº90001/2025 | F15: 0.08
C16: INSTITUTO FEDERAL DE EDUCAÇÃO, CIÊNCIA E TECNOLOGIA DO AMAPÁ - AP | D16: 23228.001001.2025-79 | E16: PREGÃO ELETRÔNICO N° 90006/2026 | F16: 0.31
C17: Procuradoria Regional da República da 1ª Região – PRR1 | D17: N° 1.01.000.000224/2025-95 | E17: PREGÃO ELETRÔNICO Nº 90002/2026) | F17: 0.02
C18: UNIVERSIDADE FEDERAL DO CARIRI | D18: N° 23507.005887/2025-93 | E18: PREGÃO ELETRÔNICO 90001/2026 | F18: 0.055
E19: MÉDIA ARITIMÉTICA | F19: 0.1163
E20: MEDIANA | F20: 0.0675
